bitfinex-derivatives/quotes_BNBF0:USTF0_20250608
["timestamp","ask_amount","ask_price","bid_price","bid_amount"]
[1749413400779,1.08471641,655.82,654.51,0.3055721]
[1749413400975,1.08471641,655.81,654.51,0.3055721]
[1749413401274,1.08471641,655.8,654.51,0.3055721]
[1749413401578,1.08471641,655.79,654.51,0.3055721]
[1749413401778,1.08471641,655.78,654.51,0.3055721]
[1749413402075,1.08471641,655.77,654.51,0.3055721]
[1749413402275,1.08471641,655.76,654.51,0.3055721]
[1749413402576,1.08471641,655.75,654.51,0.3055721]
[1749413402777,1.08471641,655.74,654.51,0.3055721]
[1749413402979,1.08471641,655.73,654.51,0.3055721]
[1749413403177,1.08471641,655.72,654.51,0.3055721]
[1749413403476,1.08471641,655.71,654.51,0.3055721]
[1749413403675,1.08471641,655.7,654.51,0.3055721]
[1749413403978,1.08471641,655.69,654.51,0.3055721]
[1749413404179,1.08471641,655.68,654.51,0.3055721]
[1749413404379,1.08471641,655.77,654.51,0.3055721]
[1749413404579,1.08471641,655.76,654.51,0.3055721]
[1749413404879,1.13509929,655.74,654.51,0.3055721]
[1749413405076,1.08471641,655.73,654.51,0.3055721]
[1749413405276,1.08471641,655.72,654.51,0.3055721]
[1749413405480,1.08471641,655.71,654.51,0.3055721]
[1749413405780,1.13509929,655.69,654.51,0.3055721]
[1749413405981,1.08471641,655.68,654.51,0.3055721]
[1749413406181,2.50349549,655.67,654.51,0.3055721]
[1749413406381,4.28220559,655.66,654.51,0.3055721]
[1749413406680,3.97595842,655.65,654.51,0.3055721]
[1749413406881,3.42790791,655.64,654.51,0.3055721]
[1749413407078,2.19741503,655.63,654.51,0.3055721]
[1749413407280,1.08471641,655.62,654.51,0.3055721]
[1749413407475,1.08471641,655.61,654.51,0.3055721]
[1749413407676,0.30503614,655.66,654.51,0.3055721]
[1749413407677,1.08471641,655.6,654.51,0.3055721]
[1749413407876,1.08471641,655.59,654.51,0.3055721]
[1749413408076,1.08471641,655.65,654.51,0.3055721]
[1749413408281,1.08471641,655.64,654.51,0.3055721]
[1749413408476,1.08471641,655.63,654.51,0.3055721]
[1749413408677,1.08471641,655.62,654.51,0.3055721]
[1749413408877,1.08471641,655.61,654.51,0.3055721]
[1749413409081,1.08471641,655.6,654.51,0.3055721]
[1749413409278,1.08471641,655.59,654.51,0.3055721]
[1749413409478,1.08471641,655.58,654.51,0.3055721]
[1749413409681,1.08471641,655.57,654.51,0.3055721]
[1749413409879,1.08471641,655.56,654.51,0.3055721]
[1749413410184,1.08471641,655.55,654.51,0.3055721]
[1749413410383,1.08471641,655.54,654.51,0.3055721]
[1749413410583,3.42395789,655.62,654.51,0.3055721]
[1749413410787,2.19627633,655.61,654.51,0.3055721]
[1749413410988,1.08471641,655.6,654.51,0.3055721]
[1749413411184,1.08471641,655.59,654.51,0.3055721]
[1749413411389,1.08471641,655.58,654.51,0.3055721]
[1749413411589,1.08471641,655.57,654.51,0.3055721]
[1749413411786,1.08471641,655.56,654.51,0.3055721]
[1749413411989,1.08471641,655.55,654.51,0.3055721]
[1749413412186,2.19233911,655.54,654.51,0.3055721]
[1749413412385,2.19233808,655.53,654.51,0.3055721]
[1749413412590,2.19233808,655.52,654.51,0.3055721]
[1749413412789,2.19232723,655.51,654.51,0.3055721]
[1749413412988,1.10761082,655.5,654.51,0.3055721]
[1749413413287,1.10761082,655.49,654.51,0.3055721]
[1749413413493,1.10761082,655.48,654.51,0.3055721]
[1749413413687,1.10635232,655.47,654.51,0.3055721]
[1749413413989,1.07497364,655.61,654.51,0.3055721]
[1749413414292,1.07497364,655.6,654.51,0.3055721]
[1749413414589,1.07497364,655.59,654.51,0.3055721]
[1749413414789,1.09810564,655.58,654.51,0.3055721]
[1749413414989,1.09810564,655.57,654.51,0.3055721]
[1749413415188,3.39482257,655.63,654.51,0.3055721]
[1749413415493,3.3910927,655.62,654.51,0.3055721]
[1749413415690,1.07497364,655.61,654.51,0.3055721]
[1749413415885,1.09637575,655.6,654.51,0.3055721]
[1749413416090,1.09637575,655.59,654.51,0.3055721]
[1749413416288,1.09637575,655.58,654.51,0.3055721]
[1749413416592,1.09637575,655.57,654.51,0.3055721]
[1749413416787,2.17134939,655.61,654.51,0.3055721]
[1749413417092,2.17134939,655.6,654.51,0.3055721]
[1749413417392,1.07497364,655.59,654.51,0.3055721]
[1749413417591,0.30503614,655.66,654.51,0.3055721]
[1749413418192,1.09634636,655.65,654.51,0.3055721]
[1749413418491,0.30503614,655.66,654.51,0.3055721]
[1749413418492,1.09634636,655.64,654.51,0.3055721]
[1749413418692,1.09634636,655.63,654.51,0.3055721]
[1749413418887,1.09634636,655.62,654.51,0.3055721]
[1749413419187,0.30503614,655.66,654.51,0.3055721]
[1749413419691,1.09554064,655.65,654.51,0.3055721]
[1749413419892,1.09554064,655.64,654.51,0.3055721]
[1749413420087,1.09554064,655.63,654.51,0.3055721]
[1749413420292,1.09554047,655.62,654.51,0.3055721]
[1749413420491,1.09554047,655.65,654.51,0.3055721]
[1749413420694,1.09554047,655.64,654.51,0.3055721]
[1749413420896,0.30503614,655.66,654.51,0.3055721]
[1749413421192,1.09558225,655.65,654.51,0.3055721]
[1749413421392,0.30503614,655.66,654.51,0.3055721]
[1749413421892,1.09557861,655.65,654.51,0.3055721]
[1749413422097,0.30503614,655.66,654.51,0.3055721]
[1749413423199,1.09521528,655.65,654.51,0.3055721]
[1749413423495,1.09521661,655.65,654.51,0.3055721]
[1749413423996,1.09521644,655.65,654.51,0.3055721]
[1749413424201,3.38880879,655.65,654.51,0.3055721]
[1749413424394,1.07497364,655.64,654.51,0.3055721]
[1749413424599,0.30503614,655.66,654.51,0.3055721]
[1749413424799,1.09521457,655.65,654.51,0.3055721]
[1749413425099,0.30503614,655.66,654.51,0.3055721]
[1749413425296,1.09521762,655.65,654.51,0.3055721]
[1749413425501,1.09521762,655.64,654.51,0.3055721]
[1749413425700,1.09521762,655.65,654.51,0.3055721]
[1749413426001,1.09521762,655.64,654.51,0.3055721]
[1749413426194,0.30503614,655.66,654.51,0.3055721]
[1749413426700,2.59849304,655.66,654.51,0.3055721]
[1749413426900,1.07497364,655.65,654.51,0.3055721]
[1749413427102,0.30503614,655.66,654.51,0.3055721]
[1749413428804,2.47512825,655.66,654.51,0.3055721]
[1749413429104,3.3886114,655.65,654.51,0.3055721]
[1749413429301,2.17009211,655.64,654.51,0.3055721]
[1749413429503,2.17009211,655.63,654.51,0.3055721]
[1749413429703,2.17061381,655.62,654.51,0.3055721]
[1749413430000,1.07497364,655.61,654.51,0.3055721]
[1749413430304,1.09553728,655.65,654.51,0.3055721]
[1749413430501,1.09553728,655.64,654.51,0.3055721]
[1749413430701,1.09553728,655.65,654.51,0.3055721]
[1749413430900,1.09553728,655.64,654.51,0.3055721]
[1749413431106,1.09553728,655.65,654.51,0.3055721]
[1749413431506,1.09553017,655.65,654.51,0.3055721]
[1749413431702,0.30503614,655.66,654.51,0.3055721]
[1749413432103,1.09604098,655.65,654.51,0.3055721]
[1749413432403,1.09604232,655.64,654.51,0.3055721]
[1749413432605,1.09604232,655.63,654.51,0.3055721]
[1749413432904,1.09604232,655.62,654.51,0.3055721]
[1749413433109,0.30503614,655.66,654.51,0.3055721]
[1749413433610,1.09684556,655.65,654.51,0.3055721]
[1749413433905,1.09682561,655.64,654.51,0.3055721]
[1749413434105,1.09682428,655.63,654.51,0.3055721]
[1749413434309,1.09682428,655.62,654.51,0.3055721]
[1749413434507,1.09682428,655.61,654.51,0.3055721]
[1749413434706,1.09682428,655.6,654.51,0.3055721]
[1749413434911,1.09682428,655.59,654.51,0.3055721]
[1749413435111,0.30503614,655.66,654.51,0.3055721]
[1749413435510,1.09682428,655.65,654.51,0.3055721]
[1749413435711,1.09682428,655.64,654.51,0.3055721]
[1749413435912,1.09682428,655.63,654.51,0.3055721]
[1749413436208,1.09682428,655.62,654.51,0.3055721]
[1749413436412,1.09746641,655.61,654.51,0.3055721]
[1749413436613,0.30503614,655.66,654.51,0.3055721]
[1749413437114,1.09909123,655.65,654.51,0.3055721]
[1749413437313,0.30503614,655.66,654.51,0.3055721]
[1749413437513,2.60305787,655.66,654.51,0.3055721]
[1749413437713,3.39324417,655.65,654.51,0.3055721]
[1749413437913,3.39324417,655.64,654.51,0.3055721]
[1749413438209,3.39324303,655.63,654.51,0.3055721]
[1749413438416,1.07110699,655.62,654.51,0.3055721]
[1749413438715,1.09908795,655.61,654.51,0.3055721]
[1749413438912,0.30503614,655.66,654.51,0.3055721]
[1749413439711,1.09908631,655.65,654.51,0.3055721]
[1749413440012,1.09906824,655.64,654.51,0.3055721]
[1749413440213,0.30503614,655.66,654.51,0.3055721]
[1749413440816,1.09906531,655.65,654.51,0.3055721]
[1749413441012,1.09906531,655.64,654.51,0.3055721]
[1749413441211,0.30503614,655.66,654.51,0.3055721]
[1749413441812,1.09906522,655.65,654.51,0.3055721]
[1749413442016,1.09906388,655.64,654.51,0.3055721]
[1749413442218,1.09906388,655.63,654.51,0.3055721]
[1749413442419,0.30503614,655.66,654.51,0.3055721]
[1749413442420,1.09906388,655.62,654.51,0.3055721]
[1749413442717,0.30503614,655.66,654.51,0.3055721]
[1749413442918,1.09906531,655.65,654.51,0.3055721]
[1749413443114,1.0990653,655.64,654.51,0.3055721]
[1749413443319,1.09906522,655.63,654.51,0.3055721]
[1749413443518,1.09906522,655.62,654.51,0.3055721]
[1749413443815,1.09906522,655.61,654.51,0.3055721]
[1749413444014,1.07110699,655.63,654.51,0.3055721]
[1749413444015,2.29829952,655.62,654.51,0.3055721]
[1749413444315,2.29829946,655.61,654.51,0.3055721]
[1749413444618,1.07110699,655.6,654.51,0.3055721]
[1749413444819,1.07110699,655.65,654.51,0.3055721]
[1749413445120,2.17410319,655.64,654.51,0.3055721]
[1749413445320,3.40197241,655.63,654.51,0.3055721]
[1749413445519,3.40272276,655.62,654.51,0.3055721]
[1749413445719,3.40272276,655.61,654.51,0.3055721]
[1749413445916,2.17477735,655.6,654.51,0.3055721]
[1749413446120,1.07110699,655.59,654.51,0.3055721]
[1749413446321,1.10367036,655.58,654.51,0.3055721]
[1749413446517,1.10367031,655.57,654.51,0.3055721]
[1749413446718,2.29905235,655.63,654.51,0.3055721]
[1749413446922,3.40272266,655.62,654.51,0.3055721]
[1749413447123,3.40272402,655.61,654.51,0.3055721]
[1749413447418,3.40270319,655.6,654.51,0.3055721]
[1749413447618,2.29905333,655.59,654.51,0.3055721]
[1749413447820,3.40270319,655.58,654.51,0.3055721]
[1749413448022,3.40270319,655.57,654.51,0.3055721]
[1749413448217,3.40270319,655.56,654.51,0.3055721]
[1749413448426,3.40270319,655.55,654.51,0.3055721]
[1749413448719,3.40270319,655.54,654.51,0.3055721]
[1749413448924,2.17475685,655.53,654.51,0.3055721]
[1749413449120,1.07110699,655.52,654.51,0.3055721]
[1749413449323,1.07110699,655.51,654.51,0.3055721]
[1749413449520,1.07110699,655.5,654.51,0.3055721]
[1749413449718,1.07110699,655.49,654.51,0.3055721]
[1749413449920,2.17475685,655.59,654.51,0.3055721]
[1749413450223,3.40270319,655.58,654.51,0.3055721]
[1749413450420,3.40270319,655.57,654.51,0.3055721]
[1749413450623,3.40345949,655.56,654.51,0.3055721]
[1749413450919,1.07110699,655.55,654.51,0.3055721]
[1749413451124,1.07110699,655.54,654.51,0.3055721]
[1749413451323,1.07110699,655.53,654.51,0.3055721]
[1749413451521,1.07110699,655.52,654.51,0.3055721]
[1749413451721,1.07110699,655.51,654.51,0.3055721]
[1749413451921,1.07110699,655.5,654.51,0.3055721]
[1749413452121,3.40345949,655.55,654.51,0.3055721]
[1749413452326,1.07110699,655.54,654.51,0.3055721]
[1749413452626,1.07110699,655.53,654.51,0.3055721]
[1749413452925,1.07110699,655.52,654.51,0.3055721]
[1749413453122,1.07110699,655.51,654.51,0.3055721]
[1749413453327,1.07110699,655.5,654.51,0.3055721]
[1749413453523,2.17539232,655.56,654.51,0.3055721]
[1749413453724,2.17591576,655.55,654.51,0.3055721]
[1749413453928,2.17591576,655.54,654.51,0.3055721]
[1749413454129,2.17591576,655.53,654.51,0.3055721]
[1749413454429,2.17591711,655.52,654.51,0.3055721]
[1749413454628,2.17591561,655.51,654.51,0.3055721]
[1749413454829,1.07110699,655.5,654.51,0.3055721]
[1749413455030,3.40458764,655.6,654.51,0.3055721]
[1749413455230,3.95868212,655.59,654.51,0.3055721]
[1749413455530,3.95868212,655.58,654.51,0.3055721]
[1749413455830,1.07110699,655.57,654.51,0.3055721]
[1749413456130,1.07110699,655.56,654.51,0.3055721]
[1749413456332,1.07110699,655.55,654.51,0.3055721]
[1749413456530,1.07110699,655.54,654.51,0.3055721]
[1749413456731,1.07110699,655.53,654.51,0.3055721]
[1749413456931,1.07110699,655.52,654.51,0.3055721]
[1749413457227,1.07110699,655.51,654.51,0.3055721]
[1749413457432,1.07110699,655.5,654.51,0.3055721]
[1749413457631,1.07110699,655.54,654.51,0.3055721]
[1749413457927,1.07110699,655.53,654.51,0.3055721]
[1749413458233,1.07110699,655.52,654.51,0.3055721]
[1749413458532,1.07110699,655.51,654.51,0.3055721]
[1749413458732,1.07110699,655.5,654.51,0.3055721]
[1749413458933,1.07110699,655.49,654.51,0.3055721]
[1749413459232,1.07110699,655.48,654.51,0.3055721]
[1749413459433,1.07110699,655.47,654.51,0.3055721]
[1749413459629,1.07110699,655.46,654.51,0.3055721]
[1749413459831,1.07110699,655.45,654.51,0.3055721]
[1749413460129,1.07110699,655.44,654.51,0.3055721]
[1749413460327,1.07110699,655.43,654.51,0.3055721]
[1749413460530,1.12124528,655.52,654.51,0.3055721]
[1749413460531,1.07110699,655.42,654.51,0.3055721]
[1749413460729,1.07110699,655.41,654.51,0.3055721]
[1749413460929,1.07110699,655.4,654.51,0.3055721]
[1749413461126,1.09144908,655.39,654.51,0.3055721]
[1749413461331,1.09144908,655.38,654.51,0.3055721]
[1749413461529,1.09144908,655.37,654.51,0.3055721]
[1749413461729,1.09144908,655.36,654.51,0.3055721]
[1749413461929,1.09144908,655.35,654.51,0.3055721]
[1749413462235,1.09144908,655.34,654.51,0.3055721]
[1749413462432,1.09144908,655.33,654.51,0.3055721]
[1749413462628,2.35992858,655.53,654.51,0.3055721]
[1749413462831,1.09206315,655.52,654.51,0.3055721]
[1749413463031,1.09206315,655.51,654.51,0.3055721]
[1749413463233,1.09206315,655.5,654.51,0.3055721]
[1749413463433,1.09206315,655.49,654.51,0.3055721]
[1749413463633,1.09206315,655.48,654.51,0.3055721]
[1749413463933,1.09206315,655.47,654.51,0.3055721]
[1749413464134,1.09206315,655.46,654.51,0.3055721]
[1749413464331,1.09206315,655.45,654.51,0.3055721]
[1749413464530,1.09206315,655.44,654.51,0.3055721]
[1749413464729,1.09206315,655.43,654.51,0.3055721]
[1749413464930,1.24451095,655.52,654.51,0.3055721]
[1749413464931,1.09206315,655.42,654.51,0.3055721]
[1749413465135,1.09206315,655.41,654.51,0.3055721]
[1749413465431,1.09206315,655.4,654.51,0.3055721]
[1749413465635,1.09206315,655.39,654.51,0.3055721]
[1749413465931,1.09206315,655.38,654.51,0.3055721]
[1749413466136,1.09206315,655.37,654.51,0.3055721]
[1749413466337,1.09206315,655.36,654.51,0.3055721]
[1749413466542,1.09206315,655.35,654.51,0.3055721]
[1749413466733,1.09206315,655.34,654.51,0.3055721]
[1749413467037,1.09206315,655.33,654.51,0.3055721]
[1749413467234,1.09206315,655.32,654.51,0.3055721]
[1749413467437,1.09206315,655.31,654.51,0.3055721]
[1749413467637,1.09206315,655.3,654.51,0.3055721]
[1749413467935,1.14186989,655.51,654.51,0.3055721]
[1749413468237,1.09288773,655.5,654.51,0.3055721]
[1749413468435,1.09288773,655.49,654.51,0.3055721]
[1749413468633,1.09288773,655.48,654.51,0.3055721]
[1749413468934,1.09288773,655.47,654.51,0.3055721]
[1749413469136,1.09288773,655.46,654.51,0.3055721]
[1749413469333,1.09288773,655.45,654.51,0.3055721]
[1749413469537,1.09288773,655.44,654.51,0.3055721]
[1749413469838,1.09288773,655.43,654.51,0.3055721]
[1749413470032,1.09288773,655.42,654.51,0.3055721]
[1749413470234,1.09288773,655.41,654.51,0.3055721]
[1749413470436,1.09288773,655.4,654.51,0.3055721]
[1749413470734,1.09288773,655.39,654.51,0.3055721]
[1749413470936,1.09288773,655.38,654.51,0.3055721]
[1749413471133,1.09288773,655.37,654.51,0.3055721]
[1749413471437,1.09288773,655.36,654.51,0.3055721]
[1749413471638,1.09288773,655.35,654.51,0.3055721]
[1749413471834,1.09288773,655.34,654.51,0.3055721]
[1749413472038,1.09288773,655.33,654.51,0.3055721]
[1749413472337,1.09288773,655.32,654.51,0.3055721]
[1749413472638,1.09288773,655.31,654.51,0.3055721]
[1749413472837,1.09288773,655.3,654.51,0.3055721]
[1749413473039,1.09288773,655.29,654.51,0.3055721]
[1749413473238,1.09288773,655.28,654.51,0.3055721]
[1749413473434,1.14186989,655.5,654.51,0.3055721]
[1749413473635,1.09320015,655.49,654.51,0.3055721]
[1749413473834,1.09320015,655.48,654.51,0.3055721]
[1749413474037,1.09320015,655.47,654.51,0.3055721]
[1749413474235,1.09320015,655.46,654.51,0.3055721]
[1749413474436,1.09320015,655.45,654.51,0.3055721]
[1749413474638,1.09320015,655.44,654.51,0.3055721]
[1749413474838,1.09320015,655.43,654.51,0.3055721]
[1749413475038,1.09320015,655.42,654.51,0.3055721]
[1749413475238,1.09320015,655.41,654.51,0.3055721]
[1749413475534,1.09320015,655.4,654.51,0.3055721]
[1749413475734,1.09320015,655.39,654.51,0.3055721]
[1749413476035,1.09320015,655.38,654.51,0.3055721]
[1749413476235,1.09320015,655.37,654.51,0.3055721]
[1749413476436,1.09320015,655.36,654.51,0.3055721]
[1749413476634,1.09320015,655.35,654.51,0.3055721]
[1749413476838,1.09320015,655.34,654.51,0.3055721]
[1749413477039,1.09320015,655.33,654.51,0.3055721]
[1749413477234,1.09320015,655.32,654.51,0.3055721]
[1749413477439,1.09320015,655.31,654.51,0.3055721]
[1749413477639,1.09320015,655.3,654.51,0.3055721]
[1749413477840,1.09320015,655.29,654.51,0.3055721]
[1749413478037,1.14186989,655.49,654.51,0.3055721]
[1749413478238,1.09334807,655.48,654.51,0.3055721]
[1749413478438,1.09334807,655.47,654.51,0.3055721]
[1749413478644,1.09334807,655.46,654.51,0.3055721]
[1749413478841,1.09334807,655.45,654.51,0.3055721]
[1749413479138,1.09334807,655.44,654.51,0.3055721]
[1749413479342,1.09334807,655.43,654.51,0.3055721]
[1749413479639,1.09334807,655.42,654.51,0.3055721]
[1749413479841,1.09334807,655.41,654.51,0.3055721]
[1749413480040,1.09334807,655.4,654.51,0.3055721]
[1749413480243,1.09334807,655.39,654.51,0.3055721]
[1749413480443,1.09334807,655.38,654.51,0.3055721]
[1749413480643,1.09334807,655.37,654.51,0.3055721]
[1749413480839,1.09334807,655.36,654.51,0.3055721]
[1749413481143,1.09334807,655.35,654.51,0.3055721]
[1749413481442,1.14186989,655.49,654.51,0.3055721]
[1749413481443,1.09334807,655.34,654.51,0.3055721]
[1749413481640,1.09334807,655.33,654.51,0.3055721]
[1749413481839,1.09334807,655.32,654.51,0.3055721]
[1749413482042,1.09334807,655.31,654.51,0.3055721]
[1749413482243,1.09334807,655.3,654.51,0.3055721]
[1749413482438,1.09334807,655.29,654.51,0.3055721]
[1749413482637,1.09334807,655.28,654.51,0.3055721]
[1749413482842,1.14186989,655.48,654.51,0.3055721]
[1749413483144,1.09334965,655.47,654.51,0.3055721]
[1749413483344,1.09334965,655.46,654.51,0.3055721]
[1749413483544,1.09334965,655.45,654.51,0.3055721]
[1749413483744,1.09334965,655.44,654.51,0.3055721]
[1749413483944,1.09334965,655.43,654.51,0.3055721]
[1749413484243,1.09334965,655.42,654.51,0.3055721]
[1749413484442,1.09334965,655.41,654.51,0.3055721]
[1749413484644,1.09334965,655.4,654.51,0.3055721]
[1749413484846,1.14186989,655.65,654.51,0.3055721]
[1749413485041,1.09342577,655.64,654.51,0.3055721]
[1749413485248,1.09342577,655.63,654.51,0.3055721]
[1749413485447,1.09342577,655.62,654.51,0.3055721]
[1749413485646,1.09342577,655.61,654.51,0.3055721]
[1749413485945,1.09342577,655.6,654.51,0.3055721]
[1749413486241,1.09342577,655.59,654.51,0.3055721]
[1749413486445,1.09342577,655.58,654.51,0.3055721]
[1749413486747,1.09342577,655.57,654.51,0.3055721]
[1749413486943,1.09342577,655.56,654.51,0.3055721]
[1749413487141,1.09342577,655.55,654.51,0.3055721]
[1749413487346,1.09342577,655.54,654.51,0.3055721]
[1749413487646,1.09342577,655.53,654.51,0.3055721]
[1749413487842,1.09342577,655.52,654.51,0.3055721]
[1749413488049,1.09342577,655.51,654.51,0.3055721]
[1749413488344,1.09342577,655.5,654.51,0.3055721]
[1749413488545,1.09342577,655.49,654.51,0.3055721]
[1749413488848,1.09342577,655.48,654.51,0.3055721]
[1749413489046,1.09342577,655.47,654.51,0.3055721]
[1749413489245,0.30503614,655.66,654.51,0.3055721]
[1749413489451,1.09045575,655.65,654.51,0.3055721]
[1749413489746,1.09045575,655.64,654.51,0.3055721]
[1749413489950,1.09045575,655.63,654.51,0.3055721]
[1749413490150,0.30503614,655.66,654.51,0.3055721]
[1749413490151,1.09045575,655.62,654.51,0.3055721]
[1749413490352,1.09045575,655.61,654.51,0.3055721]
[1749413490545,1.09045575,655.6,654.51,0.3055721]
[1749413490853,1.09045575,655.59,654.51,0.3055721]
[1749413491147,1.09045575,655.58,654.51,0.3055721]
[1749413491351,1.09045575,655.57,654.51,0.3055721]
[1749413491548,1.09045575,655.56,654.51,0.3055721]
[1749413491749,1.09045575,655.55,654.51,0.3055721]
[1749413492052,1.09045575,655.54,654.51,0.3055721]
[1749413492250,1.09045575,655.53,654.51,0.3055721]
[1749413492448,1.09045575,655.52,654.51,0.3055721]
[1749413492647,1.09045575,655.51,654.51,0.3055721]
[1749413492951,1.09045575,655.5,654.51,0.3055721]
[1749413493146,1.08983058,655.65,654.51,0.3055721]
[1749413493351,1.08983058,655.64,654.51,0.3055721]
[1749413493547,1.08983058,655.63,654.51,0.3055721]
[1749413493749,1.08983058,655.62,654.51,0.3055721]
[1749413494049,1.08983058,655.61,654.51,0.3055721]
[1749413494252,1.08983058,655.6,654.51,0.3055721]
[1749413494454,1.08983058,655.59,654.51,0.3055721]
[1749413494652,1.08983058,655.58,654.51,0.3055721]
[1749413494852,1.08983058,655.57,654.53,3.78945825]
[1749413495049,1.08983058,655.56,654.54,0.3055581]
[1749413495252,1.08983058,655.55,654.54,0.3055581]
[1749413495449,1.08983058,655.54,654.54,0.3055581]
[1749413495653,1.08983058,655.65,654.54,0.3055581]
[1749413495849,1.08983058,655.64,654.54,0.3055581]
[1749413496048,1.08983058,655.63,654.54,0.3055581]
[1749413496251,1.08983058,655.62,654.58,3.78945825]
[1749413496454,1.08983058,655.61,654.59,0.30553476]
[1749413496650,1.08983058,655.6,654.59,0.30553476]
[1749413496949,1.08983058,655.59,654.59,0.30553476]
[1749413497153,1.08983058,655.58,654.59,0.30553476]
[1749413497353,1.08983058,655.57,654.59,0.30553476]
[1749413497649,1.08983058,655.56,654.59,0.30553476]
[1749413497950,1.08948688,655.55,654.59,0.30553476]
[1749413498154,1.08948688,655.54,654.59,0.30553476]
[1749413498355,1.08948688,655.65,654.59,0.30553476]
[1749413498549,1.08948688,655.64,654.59,0.30553476]
[1749413498754,1.08948688,655.63,654.59,0.30553476]
[1749413498955,1.08948688,655.62,654.59,0.30553476]
[1749413499254,1.08948688,655.61,654.59,0.30553476]
[1749413499451,1.08948688,655.6,654.59,0.30553476]
[1749413499654,1.08948688,655.59,654.59,0.30553476]
[1749413499855,1.08948688,655.58,654.59,0.30553476]
[1749413500055,1.08948688,655.57,654.59,0.30553476]
[1749413500253,1.08948688,655.56,654.59,0.30553476]
[1749413500461,1.08948688,655.55,654.59,0.30553476]
[1749413500750,1.08948688,655.65,654.59,0.30553476]
[1749413500955,1.08948688,655.64,654.59,0.30553476]
[1749413501152,1.08948688,655.63,654.59,0.30553476]
[1749413501357,1.08948688,655.62,654.59,0.30553476]
[1749413501552,1.08948688,655.61,654.59,0.30553476]
[1749413501756,1.08948688,655.6,654.59,0.30553476]
[1749413501952,1.08948688,655.65,654.59,0.30553476]
[1749413502156,1.08948688,655.64,654.59,0.30553476]
[1749413502351,1.08948688,655.63,654.59,0.30553476]
[1749413502553,1.08948688,655.62,654.59,0.30553476]
[1749413502752,1.08948688,655.65,654.59,0.30553476]
[1749413502956,1.08948688,655.64,654.59,0.30553476]
[1749413503158,1.08948688,655.63,654.59,0.30553476]
[1749413503457,1.08948688,655.62,654.59,0.30553476]
[1749413503751,0.30503614,655.66,654.59,0.30553476]
[1749413503752,1.08948688,655.65,654.59,0.30553476]
[1749413503957,1.08948688,655.64,654.59,0.30553476]
[1749413504255,1.08948688,655.63,654.59,0.30553476]
[1749413504455,1.08948688,655.62,654.59,0.30553476]
[1749413504758,1.08948688,655.65,654.59,0.30553476]
[1749413504953,1.08948688,655.64,654.59,0.30553476]
[1749413505155,1.08948688,655.63,654.59,0.30553476]
[1749413505358,1.08948688,655.62,654.59,0.30553476]
[1749413505559,1.08948688,655.61,654.59,0.30553476]
[1749413505753,1.08948688,655.65,654.59,0.30553476]
[1749413506055,1.08948688,655.64,654.59,0.30553476]
[1749413506258,1.08948688,655.63,654.59,0.30553476]
[1749413506456,1.08948688,655.62,654.59,0.30553476]
[1749413506657,1.08948688,655.65,654.59,0.30553476]
[1749413506859,1.08948688,655.64,654.59,0.30553476]
[1749413507060,1.08948688,655.63,654.59,0.30553476]
[1749413507260,1.08948688,655.65,654.59,0.30553476]
[1749413507460,1.08948688,655.64,654.59,0.30553476]
[1749413507659,1.08948688,655.63,654.59,0.30553476]
[1749413507862,1.08948688,655.62,654.59,0.30553476]
[1749413508164,1.08948688,655.61,654.59,0.30553476]
[1749413508359,1.08948688,655.6,654.59,0.30553476]
[1749413508662,1.08948688,655.59,654.59,0.30553476]
[1749413508861,1.08948688,655.58,654.59,0.30553476]
[1749413509062,0.30503614,655.66,654.59,0.30553476]
[1749413509263,1.08904925,655.65,654.59,0.30553476]
[1749413509463,1.08904925,655.64,654.59,0.30553476]
[1749413509764,1.08904925,655.63,654.59,0.30553476]
[1749413509961,1.08904925,655.62,654.59,0.30553476]
[1749413510163,1.08904925,655.61,654.59,0.30553476]
[1749413510366,1.08904925,655.6,654.59,0.30553476]
[1749413510565,1.08904925,655.59,654.59,0.30553476]
[1749413510765,1.08904925,655.58,654.59,0.30553476]
[1749413510963,1.08904925,655.57,654.59,0.30553476]
[1749413511167,1.08904925,655.56,654.59,0.30553476]
[1749413511365,1.08904925,655.55,654.59,0.30553476]
[1749413511565,1.08904925,655.54,654.59,0.30553476]
[1749413511765,1.08904925,655.65,654.59,0.30553476]
[1749413512069,1.08904925,655.64,654.59,0.30553476]
[1749413512268,1.08904925,655.63,654.59,0.30553476]
[1749413512567,1.08904925,655.62,654.59,0.30553476]
[1749413512765,0.30503614,655.66,654.59,0.30553476]
[1749413512766,1.08904925,655.61,654.59,0.30553476]
[1749413512966,1.08904925,655.6,654.59,0.30553476]
[1749413513169,1.08904925,655.59,654.59,0.30553476]
[1749413513369,1.08904925,655.58,654.59,0.30553476]
[1749413513570,1.08904925,655.57,654.59,0.30553476]
[1749413513869,1.08904925,655.56,654.59,0.30553476]
[1749413514069,1.08904925,655.55,654.59,0.30553476]
[1749413514265,1.08904925,655.54,654.59,0.30553476]
[1749413514464,0.30503614,655.66,654.59,0.30553476]
[1749413514666,1.089222,655.65,654.59,0.30553476]
[1749413514866,1.089222,655.64,654.59,0.30553476]
[1749413515070,1.089222,655.63,654.59,0.30553476]
[1749413515367,1.089222,655.62,654.59,0.30553476]
[1749413515670,1.089222,655.61,654.59,0.30553476]
[1749413515870,1.089222,655.6,654.59,0.30553476]